bitfinex-derivatives/quotes_SOLF0:USTF0_20260208
["timestamp","ask_amount","ask_price","bid_price","bid_amount"]
[1770528136878,8.80152255,87.222,87.174,4.0702239]
[1770528137078,8.80152255,87.221,87.174,4.0702239]
[1770528137279,8.80152255,87.22,87.174,4.0702239]
[1770528137479,8.80152255,87.219,87.174,4.0702239]
[1770528137680,8.80152255,87.218,87.174,4.0702239]
[1770528137884,8.80152255,87.217,87.174,4.0702239]
[1770528138078,8.80152255,87.216,87.174,4.0702239]
[1770528138380,8.80152255,87.215,87.174,4.0702239]
[1770528138572,8.80152255,87.214,87.174,4.0702239]
[1770528138777,8.80152255,87.213,87.174,4.0702239]
[1770528138972,8.80152255,87.212,87.174,4.0702239]
[1770528139169,8.80152255,87.211,87.174,4.0702239]
[1770528139374,10.67247977,87.232,87.174,4.0702239]
[1770528139571,8.81844982,87.231,87.174,4.0702239]
[1770528139775,8.81844982,87.23,87.174,4.0702239]
[1770528139976,8.81844982,87.229,87.174,4.0702239]
[1770528140177,8.81844982,87.228,87.174,4.0702239]
[1770528140474,8.81844982,87.227,87.174,4.0702239]
[1770528140673,8.81844982,87.226,87.174,4.0702239]
[1770528140874,8.81844982,87.225,87.174,4.0702239]
[1770528141076,8.81844982,87.224,87.174,4.0702239]
[1770528141280,8.81844982,87.223,87.174,4.0702239]
[1770528141482,8.81844982,87.222,87.174,4.0702239]
[1770528141683,8.81844982,87.221,87.174,4.0702239]
[1770528141883,8.81844982,87.22,87.174,4.0702239]
[1770528142179,8.81844982,87.219,87.161,10.3337]
[1770528142378,21.33711038,87.254,87.125,1.99571609]
[1770528142379,8.81844982,87.218,87.162,4.06662801]
[1770528142574,8.81844982,87.217,87.15,4.06662801]
[1770528142780,10.67247977,87.21,87.15,4.06662801]
[1770528142978,8.81844982,87.209,87.15,4.06662801]
[1770528143175,8.81844982,87.208,87.15,4.06662801]
[1770528143385,8.81844982,87.207,87.15,4.06662801]
[1770528143686,8.81844982,87.206,87.15,4.06662801]
[1770528143876,8.81844982,87.205,87.15,4.06662801]
[1770528144082,8.81844982,87.204,87.15,4.06662801]
[1770528144288,8.81844982,87.203,87.15,4.06662801]
[1770528144487,8.81844982,87.202,87.15,4.06662801]
[1770528144785,8.81844982,87.201,87.15,4.06662801]
[1770528145082,8.81844982,87.2,87.15,4.06662801]
[1770528145385,8.81844982,87.199,87.15,4.06662801]
[1770528145688,8.81844982,87.198,87.15,4.06662801]
[1770528145886,8.81844982,87.197,87.15,4.06662801]
[1770528146084,8.81844982,87.196,87.15,4.06662801]
[1770528146380,8.81844982,87.195,87.15,4.06662801]
[1770528146587,8.81844982,87.194,87.15,4.06662801]
[1770528146887,8.81844982,87.193,87.15,4.06662801]
[1770528147088,8.81844982,87.192,87.15,4.06662801]
[1770528147288,8.81844982,87.191,87.15,4.06662801]
[1770528147489,8.81844982,87.19,87.15,4.06662801]
[1770528147686,8.81844982,87.189,87.15,4.06662801]
[1770528147988,10.67247977,87.209,87.15,4.06662801]
[1770528148189,8.81302093,87.208,87.15,4.06662801]
[1770528148389,8.81302093,87.207,87.15,4.06662801]
[1770528148686,8.81302093,87.206,87.15,4.06662801]
[1770528148880,8.81302093,87.205,87.15,4.06662801]
[1770528149083,8.81302093,87.204,87.15,4.06662801]
[1770528149283,8.81302093,87.203,87.15,4.06662801]
[1770528149584,8.81302093,87.202,87.15,4.06662801]
[1770528149786,8.81302093,87.201,87.15,4.06662801]
[1770528149982,8.81302093,87.2,87.15,4.06662801]
[1770528150178,8.81302093,87.199,87.15,4.06662801]
[1770528150384,8.81302093,87.198,87.15,4.06662801]
[1770528150588,8.81302093,87.197,87.15,4.06662801]
[1770528150794,8.81302093,87.196,87.15,4.06662801]
[1770528150986,8.81302093,87.195,87.15,4.06662801]
[1770528151292,10.3282,87.208,87.15,4.06662801]
[1770528151494,8.80646365,87.207,87.15,4.06662801]
[1770528151695,10.3286,87.205,87.15,4.06662801]
[1770528151895,8.80646365,87.204,87.15,4.06662801]
[1770528152096,8.80646365,87.203,87.15,4.06662801]
[1770528152297,8.80646365,87.202,87.15,4.06662801]
[1770528152499,8.80646365,87.201,87.15,4.06662801]
[1770528152685,8.80646365,87.2,87.15,4.06662801]
[1770528152890,8.80646365,87.199,87.15,4.06662801]
[1770528153090,8.80646365,87.198,87.15,4.06662801]
[1770528153285,8.80646365,87.197,87.15,4.06662801]
[1770528153494,10.3286,87.205,87.15,4.06662801]
[1770528153694,10.3288,87.203,87.15,4.06662801]
[1770528153895,8.80511937,87.202,87.15,4.06662801]
[1770528154093,8.80511937,87.201,87.15,4.06662801]
[1770528154293,8.80511937,87.2,87.15,4.06662801]
[1770528154501,21.33711038,87.234,87.137,4.03284122]
[1770528154502,19.47759914,87.199,87.137,4.03284122]
[1770528154705,19.47759914,87.198,87.137,4.03284122]
[1770528154896,8.80511937,87.197,87.137,4.03284122]
[1770528155096,10.67247977,87.198,87.137,4.03284122]
[1770528155097,8.80511937,87.196,87.137,4.03284122]
[1770528155297,8.80511937,87.195,87.137,4.03284122]
[1770528155491,8.80511937,87.194,87.137,4.03284122]
[1770528155695,10.3312,87.183,87.137,4.03284122]
[1770528155994,8.80511937,87.182,87.137,4.03284122]
[1770528156203,8.80511937,87.181,87.137,4.03284122]
[1770528156399,10.67247977,87.211,87.137,4.03284122]
[1770528156701,8.80035495,87.21,87.137,4.03284122]
[1770528156900,10.67247977,87.231,87.137,4.03284122]
[1770528157104,8.79857771,87.23,87.137,4.03284122]
[1770528157303,8.79857771,87.229,87.137,4.03284122]
[1770528157505,8.79857771,87.228,87.137,4.03284122]
[1770528157805,8.79857771,87.227,87.161,4.09107915]
[1770528158106,8.79857771,87.226,87.161,4.09107915]
[1770528158304,8.79857771,87.225,87.161,4.09107915]
[1770528158503,8.79857771,87.224,87.161,4.09107915]
[1770528158704,8.79857771,87.223,87.161,4.09107915]
[1770528158902,8.79857771,87.222,87.161,4.09107915]
[1770528159097,8.79857771,87.221,87.161,4.09107915]
[1770528159304,8.79857771,87.22,87.161,4.09107915]
[1770528159604,8.79857771,87.219,87.161,4.09107915]
[1770528159806,8.79857771,87.218,87.161,4.09107915]
[1770528160102,8.79857771,87.217,87.161,4.09107915]
[1770528160303,10.3255,87.231,87.161,4.09107915]
[1770528160304,8.80274789,87.216,87.161,4.09107915]
[1770528160602,8.80274789,87.215,87.163,4.00685093]
[1770528160805,10.67247977,87.238,87.163,4.00685093]
[1770528161105,8.80266398,87.237,87.163,4.00685093]
[1770528161403,8.80266398,87.236,87.163,4.00685093]
[1770528161600,8.80266398,87.235,87.163,4.00685093]
[1770528161794,8.80266398,87.234,87.163,4.00685093]
[1770528162000,160.5055,87.293,87.163,4.00685093]
[1770528162001,8.80266398,87.233,87.163,4.00685093]
[1770528162196,8.80266398,87.232,87.163,4.00685093]
[1770528162503,8.80266398,87.231,87.163,4.00685093]
[1770528162699,8.80266398,87.23,87.163,4.00685093]
[1770528163005,8.80266398,87.229,87.163,4.00685093]
[1770528163204,8.80266398,87.228,87.163,4.00685093]
[1770528163507,8.80266398,87.227,87.163,4.00685093]
[1770528163807,8.80266398,87.226,87.163,4.00685093]
[1770528164006,8.80266398,87.225,87.164,4.03731028]
[1770528164201,8.80266398,87.224,87.164,4.03731028]
[1770528164406,8.80266398,87.223,87.164,4.03731028]
[1770528164708,8.80266398,87.222,87.164,4.03731028]
[1770528165014,8.80266398,87.221,87.164,4.03731028]
[1770528165206,8.80266398,87.22,87.164,4.03731028]
[1770528165505,8.80266398,87.219,87.164,4.03731028]
[1770528165706,8.80266398,87.218,87.164,4.03731028]
[1770528165901,8.80266398,87.217,87.164,4.03731028]
[1770528166205,8.80266398,87.216,87.164,4.03731028]
[1770528166406,8.80266398,87.215,87.164,4.03731028]
[1770528166607,8.80266398,87.214,87.164,4.03731028]
[1770528166808,8.80266398,87.213,87.164,4.03731028]
[1770528167006,8.80266398,87.212,87.164,4.03731028]
[1770528167207,8.80266398,87.211,87.164,4.03731028]
[1770528167407,8.80266398,87.21,87.164,4.03731028]
[1770528167607,8.80266398,87.209,87.164,4.03731028]
[1770528167808,8.80266398,87.208,87.164,4.03731028]
[1770528168009,8.80266398,87.207,87.164,4.03731028]
[1770528168203,8.80266398,87.206,87.164,4.03731028]
[1770528168409,8.80266398,87.205,87.164,4.03731028]
[1770528168608,8.80266398,87.204,87.164,4.03731028]
[1770528168810,8.80266398,87.203,87.164,4.03731028]
[1770528169009,10.3266,87.222,87.164,4.03731028]
[1770528169210,8.82680441,87.221,87.164,4.03731028]
[1770528169409,8.82680441,87.22,87.164,4.03731028]
[1770528169611,8.82680441,87.219,87.164,4.03731028]
[1770528169811,8.82680441,87.218,87.164,4.03731028]
[1770528170012,8.82680441,87.217,87.164,4.03731028]
[1770528170313,8.82680441,87.216,87.164,4.03731028]
[1770528170514,8.82680441,87.215,87.164,4.03731028]
[1770528170811,8.82680441,87.214,87.164,4.03731028]
[1770528171011,8.82680441,87.213,87.164,4.03731028]
[1770528171211,8.82680441,87.212,87.164,4.03731028]
[1770528171413,8.82680441,87.211,87.164,4.03731028]
[1770528171712,8.82680441,87.21,87.164,4.03731028]
[1770528171911,8.82680441,87.209,87.164,4.03731028]
[1770528172113,8.82680441,87.208,87.164,4.03731028]
[1770528172310,8.82680441,87.207,87.164,4.03731028]
[1770528172511,10.3266,87.222,87.164,4.03731028]
[1770528172714,8.8271538,87.221,87.164,4.03731028]
[1770528173012,8.8271538,87.22,87.164,4.03731028]
[1770528173213,8.8271538,87.219,87.164,4.03731028]
[1770528173413,8.8271538,87.218,87.164,4.03731028]
[1770528173609,8.8271538,87.217,87.164,4.03731028]
[1770528173914,8.8271538,87.216,87.164,4.03731028]
[1770528174112,8.8271538,87.215,87.164,4.03731028]
[1770528174317,8.8271538,87.214,87.164,4.03731028]
[1770528174512,8.8271538,87.213,87.164,4.03731028]
[1770528174716,8.8271538,87.212,87.164,4.03731028]
[1770528174914,8.8271538,87.211,87.164,4.03731028]
[1770528175114,8.8271538,87.21,87.164,4.03731028]
[1770528175415,8.8271538,87.209,87.164,4.03731028]
[1770528175714,10.3266,87.222,87.164,4.03731028]
[1770528175908,8.82939083,87.221,87.164,4.03731028]
[1770528176217,10.3252,87.233,87.164,4.03731028]
[1770528176511,8.828805,87.232,87.164,4.03731028]
[1770528176713,8.828805,87.231,87.164,4.03731028]
[1770528176914,8.828805,87.23,87.164,4.03731028]
[1770528177116,8.828805,87.229,87.164,4.03731028]
[1770528177311,8.828805,87.228,87.164,4.03731028]
[1770528177517,8.828805,87.227,87.164,4.03731028]
[1770528177714,8.828805,87.226,87.165,10.3332]
[1770528178019,10.3252,87.233,87.166,4.03379944]
[1770528178020,8.828805,87.225,87.166,4.03379944]
[1770528178216,8.828805,87.224,87.166,4.03379944]
[1770528178414,10.3252,87.233,87.166,4.03379944]
[1770528178415,8.828805,87.223,87.166,4.03379944]
[1770528178616,8.828805,87.222,87.166,4.03379944]
[1770528178821,8.828805,87.221,87.17,4.03237021]
[1770528179016,10.3252,87.233,87.17,4.03237021]
[1770528179217,8.82945218,87.232,87.17,4.03237021]
[1770528179518,8.82945218,87.231,87.17,4.03237021]
[1770528179717,8.82945218,87.23,87.17,4.03237021]
[1770528179913,8.82945218,87.229,87.17,4.03237021]
[1770528180218,8.82945218,87.228,87.17,4.03237021]
[1770528180418,8.82945218,87.227,87.17,4.03237021]
[1770528180618,8.82945218,87.226,87.17,4.03237021]
[1770528180813,8.82945218,87.225,87.17,4.03237021]
[1770528181019,8.82945218,87.224,87.17,4.03237021]
[1770528181217,8.82945218,87.223,87.17,4.03237021]
[1770528181416,8.82945218,87.222,87.17,4.03237021]
[1770528181617,8.82945218,87.221,87.17,4.03237021]
[1770528181817,10.3252,87.233,87.17,4.03237021]
[1770528182019,8.83080664,87.232,87.17,4.03237021]
[1770528182218,8.83080664,87.231,87.17,4.03237021]
[1770528182520,8.83080664,87.23,87.17,4.03237021]
[1770528182817,8.83080664,87.229,87.17,4.03237021]
[1770528183017,8.83080664,87.228,87.17,4.03237021]
[1770528183217,8.83080664,87.227,87.17,4.03237021]
[1770528183520,8.83080664,87.226,87.17,4.03237021]
[1770528183720,8.83080664,87.225,87.17,4.03237021]
[1770528183920,8.83080664,87.224,87.17,4.03237021]
[1770528184220,8.83080664,87.223,87.17,4.03237021]
[1770528184411,8.83080664,87.222,87.17,4.03237021]
[1770528184617,8.83080664,87.221,87.17,4.03237021]
[1770528184820,8.83080664,87.22,87.17,4.03237021]
[1770528185121,8.83080664,87.219,87.17,4.03237021]
[1770528185322,8.83080664,87.218,87.17,4.03237021]
[1770528185515,8.83080664,87.217,87.17,4.03237021]
[1770528185717,8.83080664,87.216,87.17,4.03237021]
[1770528185916,8.83080664,87.215,87.17,4.03237021]
[1770528186122,10.3252,87.233,87.17,4.03237021]
[1770528186315,8.83069096,87.232,87.17,4.03237021]
[1770528186518,8.83069096,87.231,87.17,4.03237021]
[1770528186721,8.83069096,87.23,87.17,4.03237021]
[1770528187017,8.83069096,87.229,87.17,4.03237021]
[1770528187213,8.83069096,87.228,87.17,4.03237021]
[1770528187412,8.83069096,87.227,87.17,4.03237021]
[1770528187617,8.83069096,87.226,87.17,4.03237021]
[1770528187923,8.83069096,87.225,87.17,4.03237021]
[1770528188123,8.83069096,87.224,87.17,4.03237021]
[1770528188325,8.83069096,87.223,87.17,4.03237021]
[1770528188526,8.83069096,87.222,87.17,4.03237021]
[1770528188823,8.83069096,87.221,87.17,4.03237021]
[1770528189027,8.83069096,87.22,87.17,4.03237021]
[1770528189327,8.83069096,87.219,87.17,4.03237021]
[1770528189527,8.83069096,87.218,87.17,4.03237021]
[1770528189826,8.83069096,87.217,87.17,4.03237021]
[1770528190019,8.83069096,87.216,87.17,4.03237021]
[1770528190219,8.83069096,87.215,87.174,4.03648017]
[1770528190422,20.99627977,87.245,87.174,4.03648017]
[1770528190718,8.83016606,87.244,87.174,4.03648017]
[1770528190925,8.83016606,87.243,87.174,4.03648017]
[1770528191123,8.83016606,87.242,87.174,4.03648017]
[1770528191325,8.83016606,87.241,87.174,4.03648017]
[1770528191525,8.83016606,87.24,87.174,4.03648017]
[1770528191723,8.83016606,87.239,87.18,4.03647794]
[1770528191925,8.83016606,87.238,87.18,4.03647794]
[1770528192228,20.99627977,87.245,87.18,4.03647794]
[1770528192229,8.83016606,87.237,87.18,4.03647794]
[1770528192431,8.83016606,87.236,87.18,4.03647794]
[1770528192630,8.83016606,87.235,87.189,4.00232685]
[1770528192926,8.83016606,87.234,87.189,4.00232685]
[1770528193231,8.83016606,87.233,87.189,4.00232685]
[1770528193425,8.83016606,87.232,87.189,4.00232685]
[1770528193626,8.83016606,87.231,87.189,4.00232685]
[1770528193931,8.83016606,87.23,87.189,4.00232685]
[1770528194124,8.83016606,87.229,87.189,4.00232685]
[1770528194325,10.3238,87.245,87.189,4.00232685]
[1770528194526,8.85147732,87.244,87.189,4.00232685]
[1770528194833,8.85147732,87.243,87.189,4.00232685]
[1770528195025,8.85147732,87.242,87.189,4.00232685]
[1770528195226,8.85147732,87.241,87.189,4.00232685]
[1770528195533,8.85147732,87.24,87.189,4.00232685]
[1770528195722,8.85147732,87.239,87.189,4.00232685]
[1770528195920,8.85147732,87.238,87.189,4.00232685]
[1770528196230,8.85147732,87.237,87.189,4.00232685]
[1770528196429,8.85147732,87.236,87.189,4.00232685]
[1770528196625,8.85147732,87.235,87.189,4.00232685]
[1770528196825,8.85147732,87.234,87.189,4.00232685]
[1770528197026,8.85147732,87.233,87.191,4.02243387]
[1770528197228,8.85147732,87.232,87.191,4.02243387]
[1770528197428,8.85147732,87.231,87.191,4.02243387]
[1770528197625,10.67247977,87.25,87.191,4.02243387]
[1770528197626,8.85147732,87.23,87.191,4.02243387]
[1770528197826,10.67247977,87.25,87.191,4.02243387]
[1770528198026,8.85096545,87.249,87.191,4.02243387]
[1770528198233,8.85096545,87.248,87.191,4.02243387]
[1770528198527,8.85096545,87.247,87.191,4.02243387]
[1770528198833,8.85096545,87.246,87.191,4.02243387]
[1770528199028,8.85096545,87.245,87.191,4.02243387]
[1770528199331,8.85096545,87.244,87.191,4.02243387]
[1770528199529,8.85096545,87.243,87.191,4.02243387]
[1770528199728,8.85096545,87.242,87.191,4.02243387]
[1770528199929,8.85096545,87.241,87.191,4.02243387]
[1770528200126,8.85096545,87.24,87.191,4.02243387]
[1770528200327,8.85096545,87.239,87.191,4.02243387]
[1770528200529,8.85096545,87.238,87.191,4.02243387]
[1770528200730,8.85096545,87.237,87.191,4.02243387]
[1770528200924,8.85096545,87.236,87.191,4.02243387]
[1770528201127,8.85096545,87.235,87.191,4.02243387]
[1770528201323,8.85096545,87.234,87.191,4.02243387]
[1770528201535,8.85096545,87.233,87.191,4.02243387]
[1770528201830,8.85096545,87.232,87.191,4.02243387]
[1770528202131,8.85096545,87.231,87.191,4.02243387]
[1770528202332,8.85096545,87.23,87.191,4.02243387]
[1770528202528,8.85096545,87.229,87.191,4.02243387]
[1770528202728,10.67247977,87.245,87.191,4.02243387]
[1770528202729,8.85096545,87.228,87.191,4.02243387]
[1770528202923,8.85096545,87.227,87.191,4.02243387]
[1770528203136,8.85096545,87.226,87.191,4.02243387]
[1770528203334,8.85096545,87.225,87.191,4.02243387]
[1770528203537,10.67247977,87.245,87.191,4.02243387]
[1770528203738,8.86096113,87.244,87.191,4.02243387]
[1770528204039,8.86096113,87.243,87.191,4.02243387]
[1770528204230,8.86096113,87.242,87.191,4.02243387]
[1770528204426,8.86096113,87.241,87.191,4.02243387]
[1770528204630,8.86096113,87.24,87.191,4.02243387]
[1770528204835,10.67247977,87.245,87.191,4.02243387]
[1770528204836,8.86096113,87.239,87.191,4.02243387]
[1770528205036,8.86096113,87.238,87.191,4.02243387]
[1770528205234,8.86096113,87.237,87.191,4.02243387]
[1770528205438,8.86096113,87.236,87.191,4.02243387]
[1770528205743,8.86096113,87.235,87.191,4.02243387]
[1770528205942,8.86096113,87.234,87.181,3.99880768]
[1770528206241,8.86096113,87.233,87.181,3.99880768]
[1770528206440,8.86096113,87.232,87.181,3.99880768]
[1770528206634,8.86096113,87.231,87.181,3.99880768]
[1770528206838,8.86096113,87.23,87.181,3.99880768]
[1770528207036,8.86096113,87.229,87.181,3.99880768]
[1770528207238,8.86096113,87.228,87.181,3.99880768]
[1770528207440,8.86096113,87.227,87.181,3.99880768]
[1770528207642,8.86096113,87.226,87.181,3.99880768]
[1770528207837,8.86096113,87.225,87.181,3.99880768]
[1770528208040,8.86096113,87.224,87.181,3.99880768]
[1770528208240,8.86096113,87.223,87.181,3.99880768]
[1770528208444,8.86096113,87.222,87.181,3.99880768]
[1770528208640,8.86096113,87.221,87.181,3.99880768]
[1770528208841,10.67247977,87.235,87.181,3.99880768]
[1770528208842,8.86096113,87.22,87.181,3.99880768]
[1770528209145,8.86096113,87.219,87.181,3.99880768]
[1770528209343,8.86096113,87.218,87.181,3.99880768]
[1770528209547,10.67247977,87.241,87.181,3.99880768]
[1770528209741,10.3242,87.242,87.181,3.99880768]
[1770528209742,8.86054154,87.24,87.181,3.99880768]
[1770528209944,8.86054154,87.239,87.181,3.99880768]
[1770528210143,8.86054154,87.238,87.181,3.99880768]
[1770528210447,10.67247977,87.241,87.181,3.99880768]
[1770528210448,8.86054154,87.237,87.181,3.99880768]
[1770528210653,8.86054154,87.236,87.181,3.99880768]
[1770528210843,10.3242,87.242,87.181,3.99880768]
[1770528210844,8.86054154,87.235,87.181,3.99880768]
[1770528211043,8.86054154,87.234,87.181,3.99880768]
[1770528211243,8.86054154,87.233,87.181,3.99880768]
[1770528211441,10.3242,87.242,87.181,3.99880768]
[1770528211442,8.86054154,87.232,87.181,3.99880768]
[1770528211639,8.86054154,87.231,87.181,3.99880768]
[1770528211843,8.86054154,87.23,87.181,3.99880768]
[1770528212037,8.86054154,87.229,87.181,3.99880768]
[1770528212243,10.3242,87.242,87.181,3.99880768]
[1770528212244,0.06762498,87.227,87.181,3.99880768]
[1770528212449,8.92800621,87.226,87.181,3.99880768]
[1770528212650,0.06746467,87.226,87.181,3.99880768]
[1770528212853,0.06746467,87.224,87.181,3.99880768]
[1770528213047,0.06746467,87.222,87.181,3.99880768]
[1770528213243,10.67247977,87.237,87.181,3.99880768]
[1770528213244,0.06746444,87.22,87.181,3.99880768]
[1770528213553,8.92891485,87.219,87.181,3.99880768]
[1770528213740,8.86160887,87.218,87.181,3.99880768]
[1770528213946,8.86160887,87.217,87.181,3.99880768]
[1770528214250,8.8644088,87.216,87.181,3.99880768]
[1770528214446,0.06730598,87.219,87.181,3.99880768]
[1770528214656,8.86481132,87.218,87.181,3.99880768]
[1770528214858,8.86481132,87.217,87.181,3.99880768]
[1770528215043,0.06730598,87.219,87.181,3.99880768]
[1770528215245,0.03382804,87.217,87.181,3.99880768]
[1770528215443,8.89834919,87.216,87.181,3.99880768]
[1770528215651,8.86467599,87.215,87.181,3.99880768]
[1770528215852,0.03254311,87.213,87.158,3.96235965]
[1770528216051,0.03254311,87.211,87.158,3.96235965]
[1770528216350,0.06203293,87.209,87.158,3.96235965]
[1770528216558,0.06188164,87.207,87.158,3.96235965]
[1770528216754,0.06188164,87.205,87.158,3.96235965]
[1770528216947,0.06188164,87.203,87.158,3.96235965]
[1770528217143,0.06188164,87.201,87.158,3.96235965]
[1770528217345,0.0618815,87.199,87.135,3.94761482]
[1770528217651,0.06173195,87.186,87.135,3.94761482]
[1770528217851,0.06173195,87.184,87.135,3.94761482]
[1770528218149,0.06173195,87.182,87.135,3.94761482]
[1770528218352,8.86619038,87.181,87.135,3.94761482]
[1770528218553,8.86619038,87.18,87.135,3.94761482]
[1770528218754,8.86619038,87.179,87.135,3.94761482]
[1770528219054,8.86619038,87.178,87.135,3.94761482]
[1770528219248,8.86619038,87.177,87.135,3.94761482]
[1770528219450,8.86619038,87.176,87.135,3.94761482]
[1770528219648,8.86619038,87.175,87.135,3.94761482]
[1770528219952,10.3294,87.198,87.135,3.94761482]
[1770528220153,8.85626508,87.197,87.135,3.94761482]
[1770528220445,8.85626508,87.196,87.135,3.94761482]
[1770528220646,8.85626508,87.195,87.135,3.94761482]
[1770528220852,8.85626508,87.194,87.135,3.94761482]
[1770528221146,8.85626508,87.193,87.135,3.94761482]
[1770528221348,8.85626508,87.192,87.135,3.94761482]
[1770528221542,8.85626508,87.191,87.135,3.94761482]
[1770528221745,8.85626508,87.19,87.135,3.94761482]
[1770528221946,8.85626508,87.189,87.135,3.94761482]
[1770528222147,8.85626508,87.188,87.135,3.94761482]
[1770528222350,8.85626508,87.187,87.135,3.94761482]
[1770528222556,10.3294,87.198,87.135,3.94761482]
[1770528222753,8.84657763,87.197,87.135,3.94761482]
[1770528222953,8.84657763,87.196,87.135,3.94761482]
[1770528223152,8.84657763,87.195,87.135,3.94761482]
[1770528223356,8.84657763,87.194,87.135,3.94761482]
[1770528223554,8.84657763,87.193,87.135,3.94761482]
[1770528223754,8.84657763,87.192,87.135,3.94761482]
[1770528223955,8.87618921,87.191,87.135,3.94761482]
[1770528224148,10.3294,87.198,87.135,3.94761482]
[1770528224357,8.87558773,87.197,87.135,3.94761482]
[1770528224559,8.87558773,87.196,87.135,3.94761482]
[1770528224752,8.87558773,87.195,87.135,3.94761482]
[1770528225052,8.87558773,87.194,87.135,3.94761482]
[1770528225252,8.87558773,87.193,87.135,3.94761482]
[1770528225451,10.3294,87.198,87.135,3.94761482]
[1770528225652,8.87261322,87.197,87.135,3.94761482]
[1770528225856,8.87261322,87.196,87.135,3.94761482]
[1770528226054,10.3276,87.213,87.137,3.98174751]
[1770528226251,10.67247977,87.236,87.137,3.98174751]
[1770528226456,8.87137091,87.235,87.137,3.98174751]
[1770528226755,8.87137091,87.234,87.137,3.98174751]
[1770528226951,8.87137091,87.233,87.137,3.98174751]
[1770528227258,8.87137091,87.232,87.137,3.98174751]
[1770528227558,8.87137091,87.231,87.137,3.98174751]
[1770528227759,10.326,87.227,87.15,4.01737388]
[1770528227947,8.87137091,87.226,87.15,4.01737388]
[1770528228153,8.87137091,87.225,87.15,4.01737388]
[1770528228459,8.87137091,87.224,87.152,3.99300605]
[1770528228656,8.87137091,87.223,87.152,3.99300605]
[1770528228857,8.87137091,87.222,87.152,3.99300605]
[1770528229156,8.87137091,87.221,87.152,3.99300605]
[1770528229359,10.326,87.227,87.152,3.99300605]
[1770528229556,10.3265,87.223,87.152,3.99300605]
[1770528229853,8.86995916,87.222,87.152,3.99300605]
[1770528230053,8.86995916,87.221,87.152,3.99300605]
[1770528230252,10.3265,87.223,87.152,3.99300605]
[1770528230552,8.86993974,87.222,87.152,3.99300605]
[1770528230755,8.86993974,87.221,87.152,3.99300605]
[1770528230956,10.3265,87.223,87.152,3.99300605]
[1770528231145,8.86993974,87.222,87.152,3.99300605]
[1770528231346,8.86993974,87.221,87.152,3.99300605]
[1770528231559,8.86993974,87.221,87.13,34.52142171]
[1770528231560,10.3265,87.223,87.156,3.99368433]
[1770528231757,10.3251,87.235,87.156,3.99368433]
[1770528231958,8.86974587,87.234,87.156,3.99368433]
[1770528232150,8.86974587,87.233,87.156,3.99368433]
[1770528232347,8.86974587,87.232,87.156,3.99368433]
[1770528232558,8.86974587,87.231,87.156,3.99368433]
[1770528232758,8.86974587,87.23,87.158,4.00355335]
[1770528232958,8.86974587,87.229,87.158,4.00355335]
[1770528233149,8.86974587,87.228,87.158,4.00355335]
[1770528233351,8.86974587,87.227,87.158,4.00355335]
[1770528233551,8.86974587,87.226,87.158,4.00355335]
[1770528233754,8.86974587,87.225,87.163,4.00355253]
[1770528233955,8.86974587,87.224,87.163,4.00355253]
[1770528234155,8.86974587,87.223,87.163,4.00355253]
[1770528234460,10.3251,87.235,87.163,4.00355253]
[1770528234662,8.86903046,87.234,87.163,4.00355253]
[1770528234861,8.86903046,87.233,87.163,4.00355253]
[1770528235063,8.86903046,87.232,87.163,4.00355253]
[1770528235261,8.86903046,87.231,87.163,4.00355253]
[1770528235461,8.86903046,87.23,87.163,4.00355253]
[1770528235663,8.86903046,87.229,87.163,4.00355253]
[1770528235865,8.86903046,87.228,87.163,4.00355253]
[1770528236162,8.86903046,87.227,87.163,4.00355253]
[1770528236361,8.86903046,87.226,87.163,4.00355253]
[1770528236564,8.86903046,87.225,87.163,4.00355253]
[1770528236763,8.86903046,87.224,87.163,4.00355253]
[1770528237065,8.86903046,87.223,87.163,4.00355253]
[1770528237260,10.3251,87.235,87.163,4.00355253]
[1770528237460,10.3255,87.231,87.163,4.00355253]
[1770528237661,8.86939097,87.23,87.163,4.00355253]
[1770528237862,8.86939097,87.229,87.163,4.00355253]
[1770528238065,8.86939097,87.228,87.163,4.00355253]
[1770528238265,8.86939097,87.227,87.163,4.00355253]
[1770528238466,8.86939097,87.226,87.163,4.00355253]
[1770528238666,8.86939097,87.225,87.163,4.00355253]
[1770528238861,8.86939097,87.224,87.163,4.00355253]
[1770528239165,8.86939097,87.223,87.163,4.00355253]
[1770528239367,10.3255,87.231,87.163,4.00355253]
[1770528239567,8.87033835,87.23,87.163,4.00355253]
[1770528239767,8.87033835,87.229,87.163,4.00355253]
[1770528239968,8.87033835,87.228,87.163,4.00355253]
[1770528240169,8.87033835,87.227,87.163,4.00355253]
[1770528240366,8.87033835,87.226,87.163,4.00355253]
[1770528240566,8.87033835,87.225,87.163,4.00355253]
[1770528240767,8.87033835,87.224,87.163,4.00355253]
[1770528240963,10.3255,87.231,87.165,3.99937578]
[1770528241168,8.87011146,87.23,87.165,3.99937578]
[1770528241367,8.87011146,87.229,87.165,3.99937578]
[1770528241563,8.87011146,87.228,87.165,3.99937578]
[1770528241768,10.3242,87.242,87.178,3.99937509]
[1770528241963,8.87028109,87.241,87.178,3.99937509]
[1770528242169,8.87028109,87.24,87.178,3.99937509]